Workbook

Sheet ESTIMULO TRANSPORTISTAS
B2: ESTIMULO FISCAL TRANSPORTISTAS
B4: Introducción
B5: Se otorga un estímulo fiscal a los contribuyentes que se dediquen exclusivamente al transporte terrestre público y privado, de carga o pasaje, así como el turístico, que utilizan la Red Nacional de Autopistas de Cuota, que obtengan en el ejercicio fiscal en el que hagan uso de la infraestructura carretera de cuota.
B6: Consistente en permitir un acreditamiento de los gastos realizados en el pago de los servicios por el uso de la infraestructura mencionada hasta en un 50 por ciento del gasto total erogado por este concepto.
B7: Los contribuyentes considerarán como ingresos acumulables para los efectos del ISR el estímulo en el momento en que efectivamente lo acrediten.
B8: El acreditamiento únicamente podrá efectuarse contra el ISR causado del mismo ejercicio.
B9: Se establece la limitante de aplicar el estímulo siempre que los contribuyentes obtengan ingresos menores a 300 millones de pesos y sean miembros de partes relacionadas.
B11: Reglas
B12: Dar aviso al SAT mediante escrito libre a más tardar en marzo del siguiente año, en donde se incluya el inventario de vehículos utilizados durante el ejercicio, incluyendo la siguiente información:
B13: ►Denominación del equipo (nombre técnico y comercial, capacidad de carga o de pasajeros)
B14: ►Modelo de la unidad
B15: ►Número de control de inventario o número de serie y datos de la placa vehicular.
B16: ►Fecha de incorporación o baja del inventario, para el supuesto de modificaciones realizadas durante el año que se informa.
B17: Llevar una bitácora de viaje de origen-destino
B18: Efectuar pagos de autopistas mediante tarjeta automática vehicular o de cualquier otro sistema electrónico de pago con que cuente la autopista y conservar los estados de cuenta de dicha tarjeta o sistema.
B19: El monto del acreditamiento se obtiene aplicando el importe pagado con concepto de infraestructura carretera de cuota, sin incluir el IVA, el factor del 0.5 para toda la red nacional de autopista de cuota.
B20: Quienes opten por aplicar este beneficio, considerarán como ingreso acumulable el monto del estímulo acreditado en el momento en que lo apliquen (pagos provisionales).
B21: Quedan comprendidos en el término de carreteras o caminos, los que en su totalidad o parcialmente hubieran sido construidos por la Federación, Entidades Federativas, o Municipios, ya sea con fondos federales o locales, así como los elaborados por concesionarios.
B23: Desarrollo
B25: CONCEPTO | D25: ENERO | E25: FEBRERO | F25: MARZO | G25: ABRIL | H25: MAYO
B26: CFDI's por uso de AUTOPISTAS | D26: 162,000.00 | E26: 186,000.00 | F26: 147,600.00 | G26: 343,200.00 | H26: 210,000.00
A27: Por (x) | B27: Factor de Acreditamiento | D27: 50% | E27: 50% | F27: 50% | G27: 50% | H27: 50%
A28: Igual (=) | B28: Monto del Acreditamiento | C28: C | D28: =+D26*D27 -> 81,000.00 | E28: =+E26*E27 -> 93,000.00 | F28: 73,800.00 | G28: 171,600.00 | H28: 105,000.00
A30: Mas (+) | B30: INGRESOS ACTIVIDAD PREPONDERANTE | D30: 1,350,000.00 | E30: 1,550,000.00 | F30: 1,230,000.00 | G30: 2,860,000.00 | H30: 1,750,000.00
A31: Mas (+) | B31: ESTIMULO DE CASETAS | E31: =+D28 -> 81,000.00 | F31: =+E28 -> 93,000.00 | G31: =+F28 -> 73,800.00 | H31: 171,600.00
A32: Igual (=) | B32: INGRESO MENSUAL | C32: A | D32: =+D30+D31 -> 1,350,000.00 | E32: =+E30+E31 -> 1,631,000.00 | F32: 1,323,000.00 | G32: 2,933,800.00 | H32: 1,921,600.00
A34: Mas (+) | B34: DEDUCCIONES AUTORIZADAS | D34: 850,000.00 | E34: 770,000.00 | F34: 600,000.00 | G34: 1,560,000.00 | H34: 1,200,000.00
A35: Mas (+) | B35: DEDUCCION DE CASETAS | D35: =+D26 -> 162,000.00 | E35: 186,000.00 | F35: =+F26 -> 147,600.00 | G35: 343,200.00 | H35: 210,000.00
A36: Igual (=) | B36: DEDUCCIONES MENSUALES | C36: B | D36: =SUM(D34:D35) -> 1,012,000.00 | E36: =SUM(E34:E35) -> 956,000.00 | F36: 747,600.00 | G36: 1,903,200.00 | H36: 1,410,000.00
A38: Mas (+) | B38: INGRESO ACUMULADO | C38: A | D38: =+D32 -> 1,350,000.00 | E38: =+E32+D38 -> 2,981,000.00 | F38: =+F32+E38 -> 4,304,000.00 | G38: 7,237,800.00 | H38: 9,159,400.00
A39: Menos (-) | B39: DEDUCCIONES ACUMULADAS | C39: B | D39: =+D36 -> 1,012,000.00 | E39: =+E36+D39 -> 1,968,000.00 | F39: =+F36+E39 -> 2,715,600.00 | G39: 4,618,800.00 | H39: 6,028,800.00
A41: Igual (=) | B41: UTILIDAD FISCAL | D41: =+D38-D39 -> 338,000.00 | E41: =+E38-E39 -> 1,013,000.00 | F41: 1,588,400.00 | G41: 2,619,000.00 | H41: 3,130,600.00
A42: Menos (-) | B42: PERDIDAS EJERCICIOS ANTERIORES | D42: 20,000.00 | E42: 20,000.00 | F42: 20,000.00 | G42: 20,000.00 | H42: 20,000.00
A43: Menos (-) | B43: PTU | H43: 50,000.00
A44: Igual (=) | B44: UTILIDAD FISCAL BASE DE ISR | D44: =+D41-D42-D43 -> 318,000.00 | E44: =+E41-E42-E43 -> 993,000.00 | F44: =+F41-F42-F43 -> 1,568,400.00 | G44: =+G41-G42-G43 -> 2,599,000.00 | H44: =+H41-H42-H43 -> 3,060,600.00
A45: Por (x) | B45: TASA ISR | D45: 30% | E45: 30% | F45: 30% | G45: 30% | H45: 30%
A46: Igual (=) | B46: ISR DEL PERIODO | D46: =+D44*D45 -> 95,400.00 | E46: =+E44*E45 -> 297,900.00 | F46: =+F44*F45 -> 470,520.00 | G46: 779,700.00 | H46: 918,180.00
A48: Menos (-) | B48: PAGOS PROVISIONALES ANTERIORES | E48: =+D51 -> 93,650.00 | F48: =+D51+E51 -> 294,925.00 | G48: =+D51+E51+F51 -> 466,058.00 | H48: =+D51+E51+F51+G51 -> 773,899.00
A49: Menos (-) | B49: ISR RETENIDO POR BANCOS | D49: 1,750.00 | E49: 2,975.00 | F49: 4,462.00 | G49: 5,801.00 | H49: 6,091.00
A51: Igual (=) | B51: PAGO PROVISIONAL ISR DEL PERIODO | D51: =+D46-D48-D49 -> 93,650.00 | E51: =+E46-E48-E49 -> 201,275.00 | F51: 171,133.00 | G51: 307,841.00 | H51: 138,190.00
A53: Menos (-) | B53: ACREDITAMIENTO ESTIMULO FISCAL | C53: C | D53: =+D28 -> 81,000.00 | E53: =+E28 -> 93,000.00 | F53: =+F28 -> 73,800.00 | G53: =+G28 -> 171,600.00 | H53: =+H28 -> 105,000.00
A55: Igual (=) | B55: PAGO PROVISIONAL ISR | D55: =+D51-D53 -> 12,650.00 | E55: =+E51-E53 -> 108,275.00 | F55: 97,333.00 | G55: 136,241.00 | H55: 33,190.00
B58: Fundamento Legal
B60: Art. 16 V Ley de Ingresos de la Federación
B61: Regla 9.9 Resolución Miscelánea Fiscal
